fUSD/lending_fUSD_20250413
["ID","MTS","AMOUNT","RATE_DAILY","PERIOD"]
[357919592,1744554589328,-199.06905112,0.00019452,2]
[357919605,1744554631624,-300.93094888,0.00019452,2]
[357919606,1744554631634,-500.0,0.00019452,2]
[357919607,1744554631644,-500.0,0.00019452,2]
[357919608,1744554631654,-250.0,0.00019589,2]
[357919609,1744554631663,-300.0,0.00019725,2]
[357919610,1744554631674,-1498.55798507,0.00019726,2]
[357919611,1744554631682,-150.99,0.00019726,2]
[357919612,1744554631690,-500.0,0.00019726,2]
[357919613,1744554631699,-2951.17,0.00019726,2]
[357919614,1744554631708,-2259.2,0.00019726,2]
[357919615,1744554631718,-500.0,0.00019726,2]
[357919616,1744554631728,-500.0,0.00019726,2]
[357919617,1744554631737,-500.0,0.00019726,2]
[357919618,1744554631747,-347.6736,0.00019786,2]
[357919619,1744554631756,-200.0,0.0001984,2]
[357919620,1744554631767,-154.9596,0.00019886,2]
[357919621,1744554631777,-1727.2370957,0.00019889,2]
[357919634,1744554632022,-1000.0,0.0001989,2]
[357919636,1744554632033,-1276.08077034,0.00019899,2]
[357919637,1744554632212,-837.53,0.00019899,2]
[357919638,1744554632223,-2792.24553182,0.00019899,2]
[357919639,1744554632471,-0.83317457,0.00019899,2]
[357919646,1744554637737,-285.34343149,0.00019899,2]
[357919647,1744554637750,-13476.59449178,0.00019899,2]
[357919648,1744554637760,-715.68787425,0.000199,2]
[357919649,1744554637769,-321.28096,0.000199,2]
[357919650,1744554637779,-159.17867154,0.000199,2]
[357919651,1744554637790,-715.68787426,0.000199,2]
[357919652,1744554637800,-559.7796064,0.000199,2]
[357919653,1744554637811,-2088.172,0.00019913,2]
[357919654,1744554637820,-174.08,0.00019913,2]
[357919655,1744554637834,-500.0,0.0001997,2]
[357919656,1744554637845,-531.38270503,0.0001997,2]
[357919657,1744554637854,-1000.0,0.0001997,2]
[357919658,1744554637865,-321.0,0.00019973,2]
[357919659,1744554637875,-8995.0,0.00019973,2]
[357919660,1744554637887,-375.17566459,0.00019973,2]
[357919661,1744554637899,-500.0,0.00019973,2]
[357919662,1744554637909,-500.0,0.00019973,2]
[357919663,1744554637921,-162.14699852,0.00019973,2]
[357919664,1744554637932,-507.0297448,0.00019973,2]
[357919665,1744554637942,-159.89288979,0.00019973,2]
[357919666,1744554637953,-510.83392186,0.00019973,2]
[357919667,1744554637964,-500.0,0.00019973,2]
[357919668,1744554637975,-500.0,0.00019973,2]
[357919669,1744554637993,-500.0,0.00019973,2]
[357919670,1744554638005,-4860.7224336,0.00019986,2]
[357919671,1744554638016,-9387.10675094,0.00019986,2]
[357919672,1744554638031,-5230.49590856,0.00019986,2]
[357919673,1744554638043,-1851.2447666,0.00019986,2]
[357919674,1744554638053,-160.6112654,0.00019986,2]
[357919675,1744554638064,-2372.03189715,0.00019986,2]
[357919704,1744554639839,-353.18558855,0.00019986,2]
[357919705,1744554639849,-40934.848351,0.00019986,2]
[357919706,1744554639859,-151.0,0.00019988,2]
[357919707,1744554639869,-62850.75277434,0.0001999,2]
[357919708,1744554639879,-666.88592404,0.0001999,2]
[357919709,1744554639888,-666.88592404,0.0001999,2]
[357919710,1744554639898,-666.88592404,0.0001999,2]
[357919711,1744554639908,-151.0,0.00019999,2]
[357919712,1744554639918,-80062.53595866,0.00019999,2]
[357919713,1744554639928,-974.0,0.0002,2]
[357919714,1744554639939,-248094.20554044,0.0002,2]
[357919715,1744554639950,-1930.10302756,0.0002,2]
[357919716,1744554639962,-418.53,0.0002,2]
[357919717,1744554640237,-27108.87278496,0.0002,2]
[357919721,1744554642617,-500.0,0.00019178,2]
[357919723,1744554642627,-500.0,0.00019178,2]
[357919725,1744554642637,-500.0,0.00019452,2]
[357919726,1744554642647,-68017.85197985,0.0002,2]
[357919727,1744554642657,-355254.04825348,0.0002,2]
[357919728,1744554644356,-1373.50075121,0.0002,2]
[357919735,1744554645712,-500.0,0.00019178,2]
[357919736,1744554645723,-336.9488306,0.00019178,2]
[357919737,1744554645740,-163.0511694,0.00019178,2]
[357919738,1744554645749,-500.0,0.00019452,2]
[357919739,1744554645758,-313.58,0.00019726,2]
[357919740,1744554645768,-132.4887806,0.00019726,2]
[357919741,1744554645779,-367.5112194,0.00019726,2]
[357919742,1744554645790,-587.0687806,0.0002,2]
[357919743,1744554645801,-287.9312194,0.0002,2]
[357919744,1744554645811,-99583.56719294,0.0002,2]
[357919745,1744554645820,-278757.51786272,0.0002,2]
[357919746,1744554645831,-470.42947201,0.0002,2]
[357919747,1744554645877,-3158.61055101,0.0002,2]
[357919869,1744555198967,639.68,0.00016575,2]
[357919874,1744555831801,-591.29,0.00018444,2]
[357919875,1744555831811,-250.0,0.00018445,2]
[357919876,1744555831822,-1308.91,0.00018445,2]
[357919877,1744555831832,-191.56,0.00018445,2]
[357919878,1744555831842,-211.18,0.00018446,2]
[357919879,1744555831851,-200.0,0.00018454,2]
[357919880,1744555831861,-992.47,0.00018516,2]
[357919881,1744555831870,-639.68,0.00018839,2]
[357919882,1744555831880,-283.54,0.00019,2]
[357919883,1744555831890,-250.0,0.00019,2]
[357919884,1744555831899,-410.2933,0.00019078,2]
[357919885,1744555831909,-158.86,0.00019156,2]
[357919886,1744555831919,-158.86,0.00019161,2]
[357919887,1744555831929,-158.86,0.00019166,2]
[357919888,1744555831939,-158.86,0.00019171,2]
[357919889,1744555831948,-158.86,0.00019176,2]
[357919890,1744555831958,-9.54018928,0.00019177,2]
[357919891,1744555831973,-798.32798818,0.00019177,2]
[357919892,1744555831984,-2800.37407409,0.00019177,2]
[357919929,1744555837861,-3165.60000001,0.00019177,2]
[357919930,1744555837873,-892.581,0.00019177,2]
[357919931,1744555837989,-261.92,0.00019177,2]
[357919932,1744555838001,-2743.40407373,0.00019177,2]
[357919933,1744555838112,-23372.26601073,0.00019177,2]
[357919934,1744555838122,-500.0,0.00019178,2]
[357919935,1744555838131,-500.0,0.00019178,2]
[357919936,1744555838141,-500.0,0.00019178,2]
[357919937,1744555838150,-543.66185593,0.00019178,2]
[357919938,1744555838159,-500.0,0.00019178,2]
[357919939,1744555838169,-500.0,0.00019178,2]
[357919940,1744555838178,-500.0,0.00019178,2]
[357919941,1744555838188,-500.0,0.00019178,2]
[357919942,1744555838198,-522.78,0.00019178,2]
[357919943,1744555838207,-531.44597941,0.00019178,2]
[357919944,1744555838216,-500.0,0.00019178,2]
[357919945,1744555838226,-500.0,0.00019178,2]
[357919946,1744555838235,-500.0,0.00019178,2]
[357919947,1744555838244,-2582.27,0.00019178,2]
[357919948,1744555838254,-500.0,0.00019178,2]
[357919949,1744555838263,-1976.8,0.00019178,2]
[357919950,1744555838272,-500.0,0.00019178,2]
[357919951,1744555838281,-500.0,0.00019178,2]
[357919952,1744555838291,-500.0,0.00019178,2]
[357919953,1744555838300,-527.64169215,0.00019178,2]
[357919954,1744555838309,-510.52320347,0.00019178,2]
[357919955,1744555838318,-500.0,0.00019178,2]
[357919956,1744555838328,-571.70785994,0.00019178,2]
[357919957,1744555838337,-540.75568472,0.00019178,2]
[357919958,1744555838347,-511.71718757,0.00019178,2]
[357919959,1744555838357,-500.0,0.00019178,2]
[357919960,1744555838368,-522.59836727,0.00019178,2]
[357919961,1744555838380,-500.0,0.00019178,2]
[357919963,1744555838389,-528.51385658,0.00019178,2]
[357919964,1744555838399,-521.38460556,0.00019178,2]
[357919965,1744555838410,-506.25969383,0.00019178,2]
[357919966,1744555838419,-537.18619911,0.00019178,2]
[357919967,1744555838429,-500.0,0.00019178,2]
[357919968,1744555838438,-500.0,0.00019178,2]
[357919969,1744555838449,-508.25669381,0.00019178,2]
[357919970,1744555838458,-532.78161939,0.00019178,2]
[357919971,1744555838469,-500.0,0.00019178,2]
[357919972,1744555838478,-168.73294293,0.00019178,2]
[357919973,1744555838488,-158.86,0.00019181,2]
[357919974,1744555838497,-158.86,0.00019186,2]
[357919975,1744555838507,-158.86,0.00019191,2]
[357919976,1744555838517,-158.86,0.00019196,2]
[357919977,1744555838526,-158.86,0.00019201,2]
[357919978,1744555838536,-158.86,0.00019206,2]
[357919979,1744555838546,-158.86,0.00019211,2]
[357919980,1744555838556,-158.86,0.00019216,2]
[357919981,1744555838566,-158.86,0.00019221,2]
[357919982,1744555838576,-158.86,0.00019226,2]
[357919984,1744555838586,-158.86,0.00019231,2]
[357919985,1744555838596,-158.86,0.00019236,2]
[357919986,1744555838605,-158.86,0.00019241,2]
[357919987,1744555838615,-158.86,0.00019246,2]
[357919988,1744555838625,-250.0,0.00019249,2]
[357919989,1744555838635,-158.86,0.00019251,2]
[357919990,1744555838645,-1000.0,0.00019388,2]
[357919991,1744555838655,-166.75,0.00019435,2]
[357919992,1744555838666,-500.0,0.00019452,2]
[357919993,1744555838677,-381.12,0.00019452,2]
[357919994,1744555838687,-612.29,0.00019452,2]
[357919995,1744555838697,-500.0,0.00019452,2]
[357919996,1744555838706,-500.0,0.00019452,2]
[357919997,1744555838716,-500.0,0.00019452,2]
[357919998,1744555838725,-2582.27,0.00019452,2]
[357919999,1744555838735,-1976.8,0.00019452,2]
[357920000,1744555838745,-500.0,0.00019452,2]
[357920001,1744555838755,-500.0,0.00019452,2]
[357920002,1744555838765,-500.0,0.00019452,2]
[357920003,1744555838774,-500.0,0.00019452,2]
[357920004,1744555838784,-503.61,0.00019485,2]
[357920005,1744555838794,-500.0,0.00019726,2]
[357920006,1744555838803,-500.0,0.00019726,2]
[357920007,1744555838813,-557.49,0.00019726,2]
[357920008,1744555838822,-500.0,0.00019726,2]
[357920009,1744555838832,-636.68399577,0.00019726,2]
[357920010,1744555838844,-570.13742456,0.00019726,2]
[357920011,1744555838857,-1375.44857967,0.00019726,2]
[357920012,1744555838867,-1976.8,0.00019726,2]
[357920013,1744555838877,-500.0,0.00019726,2]
[357920014,1744555838887,-500.0,0.00019726,2]
[357920015,1744555838897,-500.0,0.00019726,2]
[357920016,1744555838907,-500.0,0.0001973,2]
[357920017,1744555838916,-38.4354713,0.0001984,2]
[357920018,1744555838928,-161.5645287,0.0001984,2]
[357920019,1744555838938,-368.64278336,0.00019886,2]
[357920020,1744555838947,-1538.9055,0.00019886,2]
[357920021,1744555838958,-182.5249,0.00019886,2]
[357920022,1744555838968,-368.64278331,0.00019888,2]
[357920023,1744555838978,-368.64278331,0.00019889,2]
[357920024,1744555838988,-368.64278331,0.00019891,2]
[357920025,1744555838997,-368.64278331,0.00019892,2]
[357920026,1744555839009,-368.64278331,0.00019894,2]
[357920027,1744555839019,-368.64278331,0.00019895,2]
[357920028,1744555839029,-368.64278331,0.00019897,2]
[357920029,1744555839039,-368.64278331,0.00019898,2]
[357920030,1744555839049,-163.37199918,0.000199,2]
[357920031,1744555839059,-220.99155637,0.000199,2]
[357920032,1744555839069,-177.84596547,0.000199,2]
[357920033,1744555839078,-11774.35470044,0.000199,2]
[357920034,1744555839091,-22187.84207315,0.000199,2]
[357920035,1744555839100,-166.64346977,0.000199,2]
[357920036,1744555839110,-368.64278331,0.000199,2]
[357920037,1744555839120,-274.29855192,0.000199,2]
[357920038,1744555839131,-358.829,0.00019917,2]
[357920039,1744555839141,-227.308,0.00019917,2]
[357920040,1744555839151,-212.513,0.00019917,2]
[357920041,1744555839162,-1670.538,0.00019924,2]
[357920042,1744555839172,-500.0,0.0001997,2]
[357920043,1744555839182,-1534.42890569,0.0001997,2]
[357920044,1744555839191,-339.1265876,0.00019973,2]
[357920045,1744555839201,-500.0,0.00019973,2]
[357920046,1744555839211,-572.0434597,0.0001998,3]
[357920047,1744555839221,-49959.99594578,0.00019986,2]
[357920048,1744555839233,-6795.853198,0.00019986,2]
[357920049,1744555839245,-683.08049837,0.00019986,2]
[357920051,1744555839917,-359.31795003,0.00019986,2]
[357920052,1744555839929,-2349.26683642,0.00019986,2]
[357920053,1744555839939,-35415.21210437,0.00019986,2]
[357920054,1744555840083,-1900.33327053,0.00019986,2]
[357920055,1744555840093,-4014.0458947,0.00019986,2]
[357920056,1744555840103,-9763.5022091,0.00019986,2]
[357920057,1744555840112,-151.0,0.00019988,2]
[357920058,1744555840122,-666.88592404,0.0001999,2]
[357920059,1744555840133,-666.88592404,0.0001999,2]
[357920060,1744555840142,-666.88592404,0.0001999,2]
[357920061,1744555840152,-151.0,0.00019999,2]
[357920062,1744555840162,-819.0,0.0002,2]
[357920063,1744555840172,-296831.88443662,0.0002,2]
[357920064,1744555840182,-212239.36059046,0.0002,2]
[357920065,1744555840194,-312.89492972,0.0002,2]
[357920066,1744555840206,-78723.10973466,0.0002,2]
[357920067,1744555840299,-341.86579367,0.0002,2]
[357920068,1744555840311,-3191.39276772,0.0002,2]
[357920069,1744555840356,-2887.46126082,0.0002,2]
[357920073,1744555842790,-336.20571485,0.0002,2]
[357920075,1744555845831,-740.0,0.0002,2]
[357920076,1744555845841,-7431.6941,0.0002,2]
[357920077,1744555845853,-1190.71399994,0.0002,2]
[357920078,1744555845954,-396.5084,0.0002,2]
[357920079,1744555845991,-256.31,0.0002,2]
[357920080,1744556280609,629.93,0.00017217,2]
[357920081,1744556642380,350.0,0.00018994,12]
[357920088,1744557031885,-374.28,0.00018907,2]
[357920090,1744557031896,-250.0,0.00018959,2]
[357920091,1744557031907,-137.89542217,0.00019,2]
[357920092,1744557031919,-157.74457783,0.00019,2]
[357920093,1744557031930,-250.0,0.00019,2]
[357920094,1744557031941,-169.07,0.0001903,2]
[357920095,1744557031951,-80.20951426,0.00019163,2]
[357920096,1744557031963,-169.79048574,0.00019163,2]
[357920097,1744557031972,-300.0,0.00019177,2]
[357920098,1744557031982,-500.0,0.00019178,2]
[357920099,1744557031991,-400.0,0.00019178,2]
[357920100,1744557032001,-437.53876526,0.00019178,2]
[357920101,1744557032178,-39.87123474,0.00019178,2]
[357920102,1744557032189,-487.35112521,0.00019178,2]
[357920103,1744557032206,-17.24930472,0.00019178,2]
[357920104,1744557032215,-452.69127038,0.00019178,2]
[357920106,1744557032227,-47.30872962,0.00019178,2]
[357920108,1744557032237,-500.0,0.00019178,2]
[357920109,1744557032247,-509.08127038,0.00019178,2]
[357920110,1744557032266,-49.46178932,0.00019178,2]
[357920111,1744557032275,-513.12125112,0.00019178,2]
[357920113,1744557032285,-205.30118183,0.00019178,2]
[357920115,1744557032297,-294.69881817,0.00019178,2]
[357920117,1744557032306,-500.0,0.00019178,2]
[357920119,1744557032317,-414.45543493,0.00019178,2]
[357920121,1744557032327,-1334.0,0.00019178,2]
[357920123,1744557032339,-320.59153593,0.00019178,2]
[357920175,1744557037993,-190.44302914,0.00019178,2]
[357920176,1744557038003,-500.0,0.00019178,2]
[357920177,1744557038013,-500.0,0.00019178,2]
[357920178,1744557038023,-599.66,0.00019178,2]
[357920179,1744557038033,-642.21070247,0.00019178,2]
[357920180,1744557038043,-1729.7,0.00019178,2]
[357920181,1744557038052,-500.0,0.00019178,2]
[357920182,1744557038062,-500.0,0.00019178,2]
[357920183,1744557038071,-500.0,0.00019178,2]
[357920184,1744557038081,-500.0,0.00019178,2]
[357920185,1744557038091,-165.84,0.00019243,2]
[357920186,1744557038101,-1813.02,0.00019287,2]
[357920187,1744557038112,-500.0,0.00019452,2]
[357920188,1744557038123,-368.72676784,0.00019452,2]
[357920189,1744557038133,-500.0,0.00019452,2]
[357920190,1744557038143,-267.64323216,0.00019452,2]
[357920191,1744557038152,-500.0,0.00019452,2]
[357920192,1744557038162,-2259.49,0.00019452,2]
[357920193,1744557038172,-480.93,0.00019452,2]
[357920194,1744557038181,-500.0,0.00019452,2]
[357920195,1744557038191,-1729.7,0.00019452,2]
[357920196,1744557038200,-355.63626839,0.00019452,2]
[357920197,1744557038219,-144.36373161,0.00019452,2]
[357920198,1744557038229,-500.0,0.00019452,2]
[357920199,1744557038239,-500.0,0.00019452,2]
[357920200,1744557038249,-500.0,0.00019452,2]
[357920201,1744557038258,-629.93,0.00019481,2]
[357920202,1744557038268,-1000.0,0.00019575,2]
[357920203,1744557038277,-1109.90303812,0.000196,2]
[357920204,1744557038287,-3623.80323027,0.000197,2]
[357920205,1744557038312,-8219.6,0.000197,2]
[357920217,1744557040230,-489420.55199773,0.000197,2]
[357920218,1744557040241,-166.66,0.00019709,2]
[357920219,1744557040251,-500.0,0.00019726,2]
[357920220,1744557040261,-500.0,0.00019726,2]
[357920221,1744557040271,-500.0,0.00019726,2]
[357920222,1744557040281,-2259.49,0.00019726,2]
[357920223,1744557040291,-567.133,0.00019726,2]
[357920224,1744557040301,-1729.7,0.00019726,2]
[357920225,1744557040311,-500.0,0.00019726,2]
[357920226,1744557040321,-163.54766801,0.00019726,2]
[357920227,1744557040331,-579.28377167,0.00019726,2]
[357920228,1744557040340,-500.0,0.00019726,2]
[357920229,1744557040350,-200.0,0.0001984,2]
[357920230,1744557040360,-315.7369,0.00019886,2]
[357920231,1744557040371,-721.0723,0.000199,2]
[357920232,1744557040380,-2119.46430806,0.000199,2]
[357920233,1744557040389,-8847.7447956,0.000199,2]
[357920234,1744557040400,-1833.062,0.0001991,2]
[357920235,1744557040411,-173.664,0.0001991,2]
[357920236,1744557040421,-150.0,0.00019917,2]
[357920237,1744557040432,-500.0,0.0001997,2]
[357920238,1744557040441,-639.50354084,0.00019973,2]
[357920239,1744557040451,-3849.91487206,0.00019979,2]
[357920240,1744557040461,-3849.91487206,0.00019979,2]
[357920241,1744557040471,-3849.91487206,0.00019979,2]
[357920242,1744557040481,-3434.42527544,0.00019979,2]
[357920243,1744557040498,-415.48959662,0.00019979,2]
[357920244,1744557040508,-119.85070278,0.00019979,2]
[357920245,1744557040534,-405.40500001,0.00019979,2]
[357920246,1744557041376,-3324.65916927,0.00019979,2]
[357920247,1744557041399,-3849.91487206,0.00019979,2]
[357920248,1744557041420,-3849.91487206,0.00019979,2]
[357920249,1744557041443,-3849.91487206,0.00019979,2]
[357920250,1744557041465,-3849.91487206,0.00019979,2]
[357920251,1744557041487,-3849.91487206,0.00019979,2]
[357920252,1744557041510,-45351.6836028,0.00019986,2]
[357920253,1744557041537,-1026.3915353,0.00019986,2]
[357920254,1744557041560,-27298.5113888,0.00019986,2]
[357920255,1744557041584,-2491.3203137,0.00019986,2]
[357920256,1744557041606,-2950.673993,0.00019986,2]
[357920257,1744557041629,-7195.7603008,0.00019986,2]
[357920258,1744557041652,-151.0,0.00019988,2]
[357920259,1744557041676,-666.88592404,0.0001999,2]
[357920260,1744557041698,-666.88592404,0.0001999,2]
[357920261,1744557041720,-666.88592404,0.0001999,2]
[357920262,1744557042004,-151.0,0.00019999,2]
[357920263,1744557042027,-150.0,0.00019999,2]
[357920264,1744557042048,-150.0,0.00019999,2]
[357920265,1744557042070,-742.0,0.0002,2]
[357920266,1744557042094,-297041.14943662,0.0002,2]
[357920267,1744557042119,-6461229.63277619,0.0002,2]
[357920268,1744557042141,-11593.82630618,0.0002,2]
[357920269,1744557042162,-35057.15904492,0.0002,2]
[357920281,1744557043054,-7504.74516512,0.0002,2]
[357920286,1744557044576,-5883.52751136,0.0002,2]
[357920292,1744557045996,-1105.36061673,0.0002,2]
[357920293,1744557046008,-375.38010645,0.0002,2]
[357920294,1744557046019,-10739.2941,0.0002,2]
[357920295,1744557046130,-300.0,0.0002,2]
[357920296,1744557046142,-2277.23637983,0.0002,2]
[357920297,1744557046154,-8524.92475953,0.0002,2]
[357920299,1744557091515,-559.94248724,0.00019178,2]
[357920300,1744557091543,-524.09989761,0.00019178,2]
[357920301,1744557091572,-500.0,0.00019178,2]
[357920302,1744557091600,-500.0,0.00019178,2]
[357920303,1744557091629,-500.0,0.00019452,2]
[357920304,1744557091657,-1102.95862225,0.000196,2]
[357920305,1744557091686,-500.0,0.00019726,2]
[357920306,1744557091717,-344.9839,0.00019879,2]
[357920307,1744557091745,-235.6225,0.000199,2]
[357920308,1744557091777,-22610.61504348,0.000199,2]
[357920309,1744557091805,-60342.5152569,0.00019986,2]
[357920310,1744557091834,-388.24143044,0.00019989,2]
[357920311,1744557091862,-300.0,0.00019999,2]
[357920312,1744557091889,-775.0,0.0002,2]
[357920313,1744557091909,-559.94248724,0.0002,2]
[357920314,1744557091921,-524.09989761,0.0002,2]
[357920315,1744557091933,-500.0,0.0002,2]
[357920316,1744557091944,-500.0,0.0002,2]
[357920317,1744557091955,-500.0,0.0002,2]
[357920318,1744557091967,-1102.95862225,0.0002,2]
[357920319,1744557091978,-500.0,0.0002,2]
[357920320,1744557091990,-344.9839,0.0002,2]
[357920321,1744557092001,-235.6225,0.0002,2]
[357920322,1744557092017,-22610.61504348,0.0002,2]
[357920323,1744557092028,-60342.5152569,0.0002,2]
[357920324,1744557092045,-388.24143044,0.0002,2]
[357920325,1744557092057,-300.0,0.0002,2]
[357920326,1744557092069,-775.0,0.0002,2]
[357920327,1744557092082,-1306706.22309473,0.0002,2]
[357920328,1744557092092,-74806.16862943,0.0002,2]
[357920329,1744557648559,566.93,0.00017038,2]
[357920330,1744557919760,4856.41121916,9e-05,2]
[357920331,1744557928236,849.03421608,0.00011,2]
[357920332,1744557936734,409.92443273,9e-05,2]
[357920350,1744558232370,-295.64,0.00018886,2]
[357920351,1744558232380,-190.4,0.00018886,2]
[357920352,1744558232389,-250.0,0.00018892,2]
[357920353,1744558232399,-4569.76859464,0.00018912,2]
[357920354,1744558232411,-250.0,0.0001893,2]
[357920355,1744558232420,-1757.51631855,0.00019061,2]
[357920358,1744558238379,-328.77368145,0.00019061,2]
[357920359,1744558238389,-300.0,0.00019177,2]
[357920360,1744558238399,-500.0,0.00019178,2]
[357920361,1744558238408,-500.0,0.00019178,2]
[357920362,1744558238417,-500.0,0.00019178,2]
[357920363,1744558238426,-500.0,0.00019178,2]
[357920364,1744558238434,-558.75,0.00019178,2]
[357920365,1744558238443,-2982.53,0.00019178,2]
[357920366,1744558238451,-500.0,0.00019178,2]
[357920367,1744558238460,-500.0,0.00019178,2]
[357920368,1744558238469,-46.97632082,0.00019178,2]
[357920369,1744558238479,-453.02367918,0.00019178,2]
[357920370,1744558238487,-500.0,0.00019178,2]
[357920371,1744558238496,-1585.56,0.00019178,2]
[357920372,1744558238505,-500.0,0.00019178,2]
[357920373,1744558238515,-500.0,0.00019178,2]
[357920374,1744558238524,-163.54766801,0.00019178,2]
[357920375,1744558238534,-500.0,0.00019178,2]
[357920376,1744558238543,-500.0,0.00019178,2]
[357920377,1744558238552,-500.0,0.00019178,2]
[357920378,1744558238563,-1000.0,0.00019254,2]
[357920379,1744558238572,-566.93,0.00019302,2]
[357920380,1744558238583,-465.52331498,0.00019451,2]
[357920381,1744558238592,-560.49255172,0.00019452,2]
[357920382,1744558238601,-500.0,0.00019452,2]
[357920383,1744558238611,-582.75451892,0.00019452,2]
[357920384,1744558238620,-500.0,0.00019452,2]
[357920385,1744558238629,-558.75,0.00019452,2]
[357920386,1744558238638,-2982.53,0.00019452,2]
[357920387,1744558238649,-500.0,0.00019452,2]
[357920388,1744558238658,-500.0,0.00019452,2]
[357920389,1744558238667,-500.0,0.00019452,2]
[357920390,1744558238678,-500.0,0.00019452,2]
[357920391,1744558238689,-1585.56,0.00019452,2]
[357920392,1744558238698,-500.0,0.00019452,2]
[357920393,1744558238709,-204.36436393,0.00019452,2]
[357920403,1744558240471,-295.63563607,0.00019452,2]
[357920404,1744558240481,-500.0,0.00019452,2]
[357920405,1744558240491,-248.78,0.00019452,2]
[357920406,1744558240501,-500.0,0.00019452,2]
[357920407,1744558240520,-151.86,0.00019452,2]
[357920408,1744558240541,-1006.8711873,0.000196,2]
[357920409,1744558240554,-1018.51661957,0.000196,2]
[357920410,1744558240565,-500.0,0.00019726,2]
[357920411,1744558240576,-500.0,0.00019726,2]
[357920412,1744558240587,-558.75,0.00019726,2]
[357920413,1744558240597,-2982.53,0.00019726,2]
[357920414,1744558240608,-500.0,0.00019726,2]
[357920415,1744558240618,-500.0,0.00019726,2]
[357920416,1744558240632,-500.0,0.00019726,2]
[357920417,1744558240642,-500.0,0.00019726,2]
[357920418,1744558240651,-1585.56,0.00019726,2]
[357920419,1744558240661,-500.0,0.00019726,2]
[357920420,1744558240670,-500.0,0.00019726,2]
[357920421,1744558240680,-500.0,0.00019726,2]
[357920422,1744558240690,-500.0,0.00019726,2]
[357920423,1744558240699,-200.0,0.0001984,2]
[357920424,1744558240709,-315.7369,0.00019879,2]
[357920425,1744558240719,-269.7884,0.00019886,2]
[357920426,1744558240730,-2500.0,0.0001989,2]
[357920428,1744558240741,-2257.84471038,0.00019899,2]
[357920431,1744558240757,-981.7133,0.000199,2]
[357920433,1744558240767,-500.0,0.000199,2]
[357920434,1744558240778,-811.3493,0.000199,2]
[357920437,1744558240788,-749.491,0.000199,2]
[357920438,1744558240798,-382.4543,0.000199,2]
[357920440,1744558240808,-721.0723,0.000199,2]
[357920443,1744558240818,-270.1513,0.000199,2]
[357920445,1744558240828,-161.7485,0.000199,2]
[357920447,1744558240838,-468.20231578,0.000199,2]
[357920449,1744558240848,-175.51614441,0.000199,2]
[357920451,1744558240858,-6804.48032751,0.000199,2]
[357920453,1744558240868,-2305.18356836,0.000199,2]
[357920455,1744558240880,-4930.11453208,0.000199,2]
[357920456,1744558240889,-350.49949062,0.000199,2]
[357920458,1744558240899,-166.37049196,0.000199,2]
[357920461,1744558240910,-9519.79092382,0.000199,2]
[357920464,1744558240920,-235.412,0.00019917,2]
[357920466,1744558240930,-3753.773,0.00019917,2]
[357920468,1744558240939,-698.0,0.00019917,2]
[357920469,1744558240949,-1121.0,0.00019917,2]
[357920470,1744558240959,-1931.907,0.00019917,2]
[357920471,1744558240969,-173.664,0.00019917,2]
[357920472,1744558240979,-500.0,0.0001997,2]
[357920473,1744558240990,-500.0,0.0001997,2]
[357920474,1744558240999,-500.0,0.00019973,2]
[357920475,1744558241010,-500.0,0.00019973,2]
[357920476,1744558241020,-500.0,0.00019973,2]
[357920477,1744558241030,-548.82592614,0.00019973,2]